Cogmind - Beta 14 @@@ ROGUE MODE // 2024.08.27 @ 18:02:46 Player: kicktown Result: Destroyed by 1I-PTO(R) with Subdweller Machine Gun Performance ------------- Evolutions (0) 0 Regions Visited (2) 400 Robots Destroyed (16) 80 Value Destroyed (436) 436 Prototype IDs (0) 0 Alien Tech Used (0) 0 Bonus (0) 0 TOTAL SCORE: 916 Bonus ------- None Cogmind --------- Core Integrity 0/250 Matter 218/300 Energy 112/125 System Corruption 0% Temperature Cool (0) Movement Rolling (200) Ox8 Location -10/Subcaves Parts ------- > --- POWER (1) -------- Light Ion Engine > --- PROPULSION (2) --- Wheel Wheel > --- UTILITY (2) ------ Huge Storage Unit Signal Interpreter > --- WEAPON (2) ------- Light Assault Rifle Light Cannon > --- INVENTORY (25) --- Ion Engine Ion Engine Light Nuclear Core Heat Sink Improved Heat Sink Huge Storage Unit High-capacity Battery (250) High-capacity Matter Pod (0) Structural Scanner Visual Processing Unit Sensor Array Sensor Array Terrain Scan Processor ECM Suite Core Shielding Assault Rifle Light Assault Rifle Light Cannon Light Cannon Peak State ------------ > --- POWER ------------ Light Ion Engine > --- PROPULSION ------- Wheel Wheel > --- UTILITY ---------- Huge Storage Unit Signal Interpreter > --- WEAPON ----------- Assault Rifle Light Assault Rifle > --- INVENTORY -------- Ion Engine Ion Engine Light Treads Improved Heat Sink High-capacity Battery High-capacity Matter Pod Visual Processing Unit Sensor Array Sensor Array Terrain Scan Processor Core Shielding Assault Rifle Light Assault Rifle Light Cannon Light Cannon Light Cannon [Rating: 9] Favorites ----------- Power Light Ion Engine Engine Light Ion Engine Propulsion Wheel Treads Light Treads Wheel Wheel Utility Signal Interpreter Device Sensor Array Storage Small Storage Unit Processor Signal Interpreter Protection Light Armor Plating Weapon Assault Rifle Energy Gun Medium Laser Ballistic Gun Assault Rifle Ballistic Cannon Light Cannon Launcher Grenade Launcher Special Weapon Mining Laser Slashing Weapon Mining Claw Build | -11 -10 -10 ------- Run | Yrd Mat Sub Slots Evolved . | . . . Power . | . . . Propulsion . | . . . Utility . | . . . Weapon . | . . . Parts Attached 42 | 6 33 3 Power 6 | 1 5 . Engine 6 | 1 5 . Core . | . . . Reactor . | . . . Propulsion 10 | 2 6 2 Treads 3 | . 2 1 Leg . | . . . Wheel 7 | 2 4 1 Hover . | . . . Flight . | . . . Utility 12 | 1 11 . Device 4 | . 4 . Storage 4 | 1 3 . Processor 1 | . 1 . Hackware . | . . . Protection 3 | . 3 . Artifact . | . . . Weapon 14 | 2 11 1 Energy Gun 4 | 2 2 . Energy Cannon . | . . . Ballistic Gun 4 | . 4 . Ballistic Cannon 2 | . 1 1 Launcher 2 | . 2 . Special Weapon 1 | . 1 . Impact Weapon . | . . . Slashing Weapon 1 | . 1 . Piercing Weapon . | . . . Special Melee Weapon . | . . . Unidentified Prototypes . | . . . Parts Lost 11 | . 9 2 Power 2 | . 2 . Propulsion 3 | . 2 1 Utility 1 | . 1 . Weapon 5 | . 4 1 Highest Loss Streak 5 | . 5 2 To Critical Strikes . | . . . Average Slot Usage (%) 97 | . 97 92 Engine 13 | . 13 14 Treads 9 | . 10 . Wheel 17 | . 17 28 Device 7 | . 7 . Storage 8 | . 8 14 Processor 9 | . 9 14 Energy Gun 7 | . 7 . Ballistic Gun 17 | . 16 21 Launcher 1 | . 1 . Peak Build Rating 9 | 6 9 9 Average Rating 7 | 4 7 8 On Entrance 5 | . 6 9 Naked Turns . | . . . Heaviest Build 86 | 13 86 86 Greatest Support 26 | 26 20 20 Greatest Overweight (x) 8 | . 8 4 Average Overweight (x) 1 | . 1 4 Largest Inventory Capacity 25 | 8 25 25 Average Capacity 12 | 7 12 25 Most Carried 21 | 6 21 21 Average Carried 8 | 2 8 20 Final Capacity 25 | 8 25 25 Final Carried 21 | 6 21 19 Class Distribution -------------------- 100% | Mutant Dominant Class ---------------- Mutant | -10/Materials Mutant | -10/Subcaves Resources | -11 -10 -10 ----------- Run | Yrd Mat Sub Matter Collected 681 | 250 431 . Remotely . | . . . Salvage Created 453 | . 399 54 Parts 35 | . 30 5 Haulers Intercepted . | . . . Recyclers Shooed . | . . . Parts Field Recycled . | . . . Retrieved Matter . | . . . Parts Self-Destructed . | . . . Prevented . | . . . Kills | -11 -10 -10 ------- Run | Yrd Mat Sub Combat Hostiles Destroyed 13 | . 12 1 Guns 11 | . 11 . Cannons 1 | . . 1 AOE 1 | . 1 . Classes Destroyed 5 | . 4 1 Builder 1 | . 1 . Watcher 2 | . 2 . Swarmer 3 | . 3 . Grunt 9 | . 9 . Subdweller 1 | . . 1 Best Kill Streak 3 | . 3 1 Combat Bots Only 3 | . 3 1 Max Kills in Single Turn 2 | . 2 1 Gunslinging . | . . . Exploded 1 | . 1 . Melee . | . . . Uniques/NPCs Destroyed . | . . . Combat | -11 -10 -10 -------- Run | Yrd Mat Sub Hostile Shots Fired 151 | . 145 6 Missed 35 | . 34 1 Damage Taken 1269 | . 1155 114 Core 251 | . 186 65 Absorbed by Shields . | . . . Core Remaining (%) 100 | 100 . . Volleys Fired 76 | . 74 2 Largest 2 | . 2 2 Hottest 120 | . 120 55 Shots Fired 121 | . 117 4 Gun 108 | . 105 3 Cannon 1 | . . 1 Launcher 2 | . 2 . Special 10 | . 10 . Kinetic 63 | . 59 4 Thermal 56 | . 56 . Explosive 2 | . 2 . Electromagnetic . | . . . Robot Hit Streak 9 | . 9 2 Robot Miss Streak 4 | . 4 1 Penetration Max . | . . . Secondary Targets 2 | . 2 . Max Gunslinging Chain 1 | . 1 . Shots Hit Robots 69 | . 67 2 Core Hits 32 | . 30 2 Critical Kills . | . . . Critical Parts Destroyed . | . . . Critical Strikes 1 | . 1 . Burn 1 | . 1 . Melee Attacks 2 | . 2 . Impact . | . . . Slashing 2 | . 2 . Piercing . | . . . Sneak Attacks . | . . . Combat Hostiles . | . . . Follow-up Attacks . | . . . Damage Inflicted 985 | . 957 28 Guns 802 | . 792 10 Cannons 18 | . . 18 Explosions 141 | . 141 . Melee . | . . . Ramming . | . . . Kinetic 442 | . 414 28 Thermal 402 | . 402 . Explosive 141 | . 141 . Electromagnetic . | . . . Impact . | . . . Slashing . | . . . Piercing . | . . . Highest Corruption . | . . . Average Corruption . | . . . Corruption Purged . | . . . Corruption Blocked . | . . . Overload Shots . | . . . Overflow Damage . | . . . Projectiles . | . . . Explosions . | . . . Melee . | . . . Knockbacks . | . . . Impact . | . . . Kinetic . | . . . Secondary . | . . . Self-Inflicted Damage . | . . . Shots . | . . . Rammed . | . . . Targets Rammed . | . . . Kicked . | . . . Crushed . | . . . Highest Temperature 330 | . 330 . Average Temperature 91 | . 91 . Received Heat Transfer 480 | . 462 18 Effects 1 | . 1 . Matter Decay 1 | . 1 . Siege Activations . | . . . Robots Corrupted . | . . . Combat Hostiles . | . . . Parts Fried . | . . . Impact Corruptions . | . . . Robots Melted . | . . . Combat Hostiles . | . . . Parts Melted 1 | . 1 . Heat Transferred 1197 | . 1197 . Parts Sabotaged . | . . . Parts Stolen . | . . . Parts Stripped . | . . . Power Chain Reactions . | . . . Alert | -11 -10 -10 ------- Run | Yrd Mat Sub Peak Influence 192 | . 192 . Initial . | . . . Average 50 | . 51 . Maximum Alert Level . | . . . Low Security (%) 100 | 100 100 . Level 1 . | . . . Level 2 . | . . . Level 3 . | . . . Level 4 . | . . . Level 5 . | . . . High Security . | . . . Max Security . | . . . Squads Dispatched 3 | . 3 . Investigation 3 | . 3 . Extermination . | . . . Reinforcement . | . . . Assault . | . . . Garrison . | . . . Intercept . | . . . Searches Triggered . | . . . Construction Impeded . | . . . Haulers Reinforced . | . . . Active Scanning Responses . | . . . Cargo Convoy Interrupts . | . . . Stealth | -11 -10 -10 --------- Run | Yrd Mat Sub Distress Signals 4 | . 4 . Communications Jammed . | . . . Distress Signals . | . . . Times Spotted 28 | . 26 2 Peak Tracking Total 7 | . 7 2 Tactical Retreats 2 | . 2 . Traps | -11 -10 -10 ------- Run | Yrd Mat Sub Traps Triggered 2 | . 2 . Indirectly . | . . . Trap Hack Attempts . | . . . Triggered . | . . . Disarmed . | . . . Reprogrammed . | . . . Reused . | . . . Traps Extracted . | . . . Installed . | . . . Triggered . | . . . Machines | -11 -10 -10 ---------- Run | Yrd Mat Sub Machines Disabled 1 | . 1 . Max in Single Turn 1 | . 1 . Machines Repaired . | . . . Machines Dismantled . | . . . Machines Sabotaged . | . . . Overloaded Fab Kills . | . . . Hacking | -11 -10 -10 --------- Run | Yrd Mat Sub Machines Accessed 10 | . 10 . Terminals 8 | . 8 . Fabricators . | . . . Repair Stations . | . . . Recycling Units 2 | . 2 . Scanalyzers . | . . . Garrison Access . | . . . Total Hacks 24 | . 24 . Successful 13 | . 13 . Failed 11 | . 11 . Catastrophic 2 | . 2 . Database Lockouts . | . . . Manual 19 | . 19 . Terminals 18 | . 18 . Fabricators . | . . . Repair Stations . | . . . Recycling Units 6 | . 6 . Scanalyzers . | . . . Garrison Access . | . . . Terminal Hacks 2 | . 2 . Locate Traps 2 | . 2 . Fabricator Hacks . | . . . Repair Station Hacks . | . . . Recycling Unit Hacks 3 | . 3 . Report Inventory 1 | . 1 . Retrieve Components 2 | . 2 . Scanalyzer . | . . . Garrison Access Hacks . | . . . Unauthorized Hacks 8 | . 8 . Terminals 7 | . 7 . Assimilate 1 | . 1 . Skim 6 | . 6 . Fabricators . | . . . Repair Stations . | . . . Recycling Units 1 | . 1 . Reject 1 | . 1 . Scanalyzers . | . . . Garrison Access . | . . . Data Cores Recovered . | . . . Used . | . . . Hacking Detections 8 | . 8 . Full Trace Events 3 | . 3 . Feedback Events . | . . . Feedback Blocked . | . . . Robot Schematics Acquired . | . . . Robots Built . | . . . Authchips . | . . . Time . | . . . Total Robot Build Rating . | . . . Part Schematics Acquired . | . . . Parts Built . | . . . Authchips . | . . . Time . | . . . Total Part Build Rating . | . . . Parts Repaired . | . . . Time . | . . . Parts Recycled . | . . . Recycled Matter . | . . . Retrieved Matter . | . . . Retrieved Components 20 | . 20 . Parts Scanalyzed . | . . . Part Schematics Acquired . | . . . Parts Damaged . | . . . Bothacking | -11 -10 -10 ------------ Run | Yrd Mat Sub Used RIF Installer . | . . . Robots Hacked . | . . . Non-combat . | . . . Combat . | . . . Robot Hacks Applied . | . . . Relay Couplers Released . | . . . Fabnet Peak Effective % . | . . . Robots Rewired . | . . . Allies Hacked . | . . . Hacks Repelled . | . . . Allies | -11 -10 -10 -------- Run | Yrd Mat Sub Total Allies . | . . . Largest Group . | . . . Highest-Rated Group . | . . . Highest-Rated Ally . | . . . Total Orders . | . . . Ally Attacks . | . . . Total Damage . | . . . Kills . | . . . Allies Corrupted . | . . . Allies Melted . | . . . Intel | -11 -10 -10 ------- Run | Yrd Mat Sub Robot Analysis Total . | . . . Derelict Logs Recovered . | . . . Drone Launches . | . . . Drone Recoveries . | . . . Exploration | -11 -10 -10 ------------- Run | Yrd Mat Sub Turns Passed 1901 | 49 1839 13 Spaces Moved 1311 | 39 1268 4 Core 3 | 3 . . Treads 59 | . 59 . Legs . | . . . Wheels 1249 | 36 1209 4 Hover . | . . . Flight . | . . . Fastest Speed 50 | 50 80 140 Average Speed 108 | 86 108 140 Slowest Speed 200 | 90 200 140 Overloaded Moves . | . . . Propulsion Burnouts . | . . . Robots Hopped . | . . . Cave-ins Triggered . | . . . Exploration Rate (%) 35 | 3 100 2 Regions Visited 2 Branch Regions 1 Pre-discovered Areas 1 | . 1 . Known Exits Taken 1 | . 1 . Unknown Exits Taken 1 | 1 . . Scrap Searched . | . . . Spaces Dug 8 | . 8 . Terrain Destroyed 20 | . 20 . Melee 1 | . 1 . Projectile 7 | . 7 . AOE 12 | . 12 . Terrain Rammed . | . . . Walls Destroyed . | . . . Machines Disabled . | . . . Actions | -11 -10 -10 --------- Run | Yrd Mat Sub Total 1651 | 51 1591 9 Wait 164 | 1 163 . Move 1309 | 38 1267 4 Hop . | . . . Pick Up 37 | 6 31 . Fast Attach 15 | 6 9 . Attach 12 | . 10 2 Detach 4 | . 4 . Swap 15 | . 14 1 Drop 17 | . 17 . Fire 76 | . 74 2 Melee 2 | . 2 . Ram . | . . . Kick . | . . . Crush . | . . . Escape Stasis . | . . . Rewire . | . . . Trap . | . . . Miscellaneous . | . . . Route ------- -11/Scrapyard -10/Materials (discovered 5 exits: *Mat x3 / *Min / *Sub) -10/Subcaves History --------- Turn | Location | Event 9 | -11/Scrapyard | Discovered new exit (range 16) 50 | -11/Scrapyard | Entered Materials 310 | -10/Materials | Build established: Mutant 468 | -10/Materials | Discovered new exit (range 3) 568 | -10/Materials | Lost 4 parts (1p1n2w) 621 | -10/Materials | Identified exit to Materials 784 | -10/Materials | Discovered exit to Materials (range 14) 833 | -10/Materials | Core integrity fell below 50% 879 | -10/Materials | Lost 5 parts (1p1n1u2w) 932 | -10/Materials | Discovered new exit (range 6) 935 | -10/Materials | Identified exit to Mines 1079 | -10/Materials | Discovered exit to Materials (range 14) 1279 | -10/Materials | Discovered new exit (range 14) 1289 | -10/Materials | Identified exit to Subcaves 1396 | -10/Materials | Learned location of Mines (-9) 1440 | -10/Materials | Learned location of 2 exits from Mines 1475 | -10/Materials | Learned location of 1 exit from Recycling 1518 | -10/Materials | Learned Storage stockpile data 1568 | -10/Materials | Learned Storage security intel 1889 | -10/Materials | Entered Subcaves 1893 | -10/Subcaves | Ambushed by Subdwellers from Twisted Machinery 1900 | -10/Subcaves | Core integrity fell below 20% 1902 | -10/Subcaves | Destroyed by 1I-PTO(R) with Subdweller Machine Gun Last Messages --------------- Sml. Laser Aluminum Leg Imp. Heat Sink Lgt. Nuclear Core Heat Sink Lgt. Ion Engine 01624_ Acquired Imp. Heat Sink. 01626_ Acquired Lgt. Nuclear Core. 01628_ Acquired ECM Suite. 01631_ Acquired Structural Scanner. 01636_ Acquired Heat Sink. 01683_ Acquired Huge Storage Unit. LOCATION=SUBCAVES AMBIENT_HEAT=-10 GOAL=ESCAPE 01893_ 1I-PTO(R) emerges from the Twisted Machinery. 01897_ Assault Rifle destroyed. 01897_ Lgt. Treads destroyed. 01901_ BQ-2CK(R) destroyed. 01902_ Subatomizers dissect the Sub. Power Source. Map ----- +----------------------------------------------------+ | ????????????????????????????????????????????????? | | ????????????????????????????????????????????????? | | ????????????????????????????????????????????????? | | ????????????????????????????????????????????????? | | ????????????????????????????????????????????????? | | ????????????????????????????????????????????????? | | ????????????????????????????????????????????????? | | ????????????????????????????????????????????????? | | ????????????????????????????????????????????????? | | ????????????????????????????????????????????????? | | ????????????????????????????????????????????????? | | ????????????????????????????????????????????????? | | ????????????????????????????????????????????????? | | ????????????????????????????????????????????????? | | ????????????????????????????????????????????????? | | ????????????????????????????????????????????????? | | ????????????????????????????????????????????????? | | ????????????????????????????????????????????????? | | ????????????????????????????????????????????????? | | ???????????????#????????????????????### ???????? | | ???????????????#"???????####??????? ???????? | | ??????????????##"" ?##??# ###??? ??????? | | ??????????????# "" # ### ### ??????? | | ??????????????# "" &R& ??????? | | ???????????????#"" *%! ??????? | | ???????????????# "" ####@% ### #?????????? | | ???????????????????????# ##??????????????????? | | ?????????????????????# #???????????????????? | | ?????????????????????# ##???????????????????? | | ???????????????????? ##????????????????????? | | ???????????????????# ##?????????????????????? | | ???????????????????# "#??????????????????????? | | ?????????????????? ####??????????????????????? | | ????????????????? ??????????????????????????? | | ???????????????? "??????????????????????????? | | ????????????????# "???????????????????????????? | | ????????????????" """???????????????????????????? | | ??????????????????"?????????????????????????????? | | ????????????????????????????????????????????????? | | ????????????????????????????????????????????????? | | ????????????????????????????????????????????????? | | ????????????????????????????????????????????????? | | ????????????????????????????????????????????????? | | ????????????????????????????????????????????????? | | ????????????????????????????????????????????????? | | ????????????????????????????????????????????????? | | ????????????????????????????????????????????????? | | ????????????????????????????????????????????????? | | ????????????????????????????????????????????????? | | ????????????????????????????????????????????????? | +----------------------------------------------------+ Best States ------------- Heat Dissipation 25 Energy Generation 10 Energy Capacity 250 Matter Stores 299 Matter Capacity 300 Sight Range 16 Robot Scan Range 14 Terrain Scan Density 10 Armor Coverage 150 Evasion (%) 44 Recoil Reduction 1 Item Schematics ----------------- None Robot Schematics ------------------ None Fabricated ------------ Nothing Alien Tech Used ----------------- None Achievements -------------- None Challenges ------------ None Game ------ Seed DecoyEnergyInterrupter Manual? 0 Play Time 00:34:20 Cumulative 71.7 hours Start 2024.08.26 @ 21:54:59 End 2024.08.27 @ 18:02:46 Sessions 1 Manual Loads 0 Difficulty Rogue Special Mode None Game No. 64 Rogue 64 Adventurer 0 Explorer 0 Win Type - Total 0 Types 0/0/0/0/0/0/0/0/0 Lore% 18 Gallery% 46 Achievement% 34 Wizard Run 0 Options --------- Layout 0 ASCII 0 Keyboard 0 Movement Mouse Keybinds 0 Fullscreen 2 Font 18/SmallcapsGlow Map View 76x50 Zoom Use 0% Tactical HUD 1 Map Filters NONE Filters NONE Steam 1 RUN: bdf14fc6-aa90-4d04-b7ba-d24994a5a5b0